bitfinex/quotes_ETHUSD_20251217
["timestamp","ask_amount","ask_price","bid_price","bid_amount"]
[1765990338601,3.93056023,2853.0,2851.9,8.369]
[1765990338921,3.93056023,2853.0,2851.9,11.87541375]
[1765990338922,2.460922,2852.9,2851.9,11.87541375]
[1765990339098,0.46438023,2853.0,2852.0,5.4222]
[1765990339294,0.46438023,2853.0,2852.0,7.795]
[1765990339521,0.001,2853.1,2852.0,0.405504]
[1765990339696,8.357804,2853.9,2852.4,0.405504]
[1765990339889,0.858,2853.8,2852.2,8.25938023]
[1765990340117,8.357804,2853.9,2852.2,8.25938023]
[1765990340118,23.146354,2853.5,2852.3,0.574]
[1765990340523,0.46438023,2853.2,2852.2,7.795]
[1765990340728,0.61919202,2853.1,2852.4,5.4222]
[1765990340891,0.574,2853.6,2852.3,2.3728]
[1765990340892,0.46438023,2853.3,2852.3,2.3728]
[1765990341223,0.46438023,2853.3,2852.1,5.9962]
[1765990341224,0.46438023,2853.1,2852.1,5.9962]
[1765990341523,0.46438023,2853.5,2852.3,7.795]
[1765990341724,0.405504,2853.5,2852.3,7.795]
[1765990341913,0.001,2853.1,2852.6,5.4222]
[1765990342229,0.001,2854.0,2852.9,2.3728]
[1765990342535,17.22496623,2853.8,2852.7,5.4222]
[1765990342751,0.46438023,2853.4,2851.6,0.02463661]
[1765990343030,0.46438023,2853.2,2851.8,0.405504]
[1765990343232,3.46618,2853.3,2852.2,11.30100923]
[1765990343449,0.404018,2853.2,2852.2,4.08004656]
[1765990343599,0.574,2853.4,2852.3,11.30091453]
[1765990343796,2.064864,2853.9,2852.9,5.4222]
[1765990344097,0.0002,2854.0,2853.1,2.3728]
[1765990344346,0.0002,2854.0,2853.0,5.4222]
[1765990344795,0.858,2853.6,2851.9,11.30135746]
[1765990344994,9.685246,2853.3,2851.3,0.46438023]
[1765990345208,12.004592,2852.9,2851.9,5.4222]
[1765990345421,0.46438023,2852.8,2851.9,5.9962]
[1765990345621,1.01496262,2853.2,2852.4,2.3728]
[1765990345917,0.0002,2854.0,2852.7,5.4222]
[1765990346115,0.0002,2854.0,2852.5,0.574]
[1765990346116,3.251,2853.9,2852.9,5.4222]
[1765990346316,4.097619,2853.7,2852.9,5.4222]
[1765990346515,0.46438023,2853.8,2852.9,5.4222]
[1765990346746,0.46438023,2853.6,2852.9,5.4222]
[1765990347045,0.99431782,2853.5,2852.9,5.4222]
[1765990347244,0.46438023,2853.8,2852.8,2.3728]
[1765990347449,0.46438023,2853.6,2852.8,2.3728]
[1765990347747,8.43999842,2854.0,2852.6,2.3728]
[1765990347748,0.574,2853.5,2852.6,2.3728]
[1765990347949,0.574,2853.5,2852.5,3.50568999]
[1765990348259,0.574,2853.5,2852.1,0.46438023]
[1765990348260,0.858,2853.3,2852.1,2.3728]
[1765990348550,0.574,2853.5,2852.2,2.9468]
[1765990348844,0.574,2853.5,2852.3,5.4222]
[1765990348845,1.03838023,2853.5,2852.3,5.4222]
[1765990349026,9.446447,2853.4,2852.3,7.795]
[1765990349222,9.446447,2853.4,2852.4,5.4222]
[1765990349447,0.46438023,2853.3,2852.4,5.4222]
[1765990349637,1.17630662,2853.2,2852.4,5.4222]
[1765990349945,0.001,2853.5,2852.7,5.4222]
[1765990350147,0.001,2853.5,2852.5,0.574]
[1765990350350,3.05099123,2853.4,2852.3,2.3728]
[1765990350549,1.03838023,2853.4,2852.4,5.4222]
[1765990350721,0.574,2853.4,2852.4,5.4222]
[1765990350918,5.606465,2853.3,2852.5,7.795]
[1765990351247,0.001,2853.5,2852.2,0.574]
[1765990351248,0.001,2853.5,2852.8,5.4222]
[1765990351449,0.001,2853.5,2852.9,7.795]
[1765990351947,0.001,2853.5,2853.0,7.795]
[1765990352122,0.001,2853.5,2853.1,5.4222]
[1765990352746,0.001,2853.5,2852.9,2.3728]
[1765990353126,0.001,2853.5,2853.1,2.3728]
[1765990353325,0.001,2853.5,2853.2,7.795]
[1765990353527,0.0002,2854.0,2853.0,5.4222]
[1765990353839,0.0002,2854.0,2852.9,8.14042552]
[1765990354034,0.0002,2854.0,2853.1,5.4222]
[1765990354447,10.078828,2853.9,2853.1,5.4222]
[1765990354654,1.0079028,2853.8,2853.1,5.4222]
[1765990354848,0.46458023,2854.0,2853.0,0.574]
[1765990355048,18.922037,2853.9,2852.6,2.3728]
[1765990355257,10.767547,2853.9,2852.7,7.795]
[1765990355555,21.74579923,2853.7,2852.7,5.4222]
[1765990355755,23.581903,2853.4,2851.9,0.002]
[1765990355923,2.40462832,2853.3,2852.2,0.573]
[1765990356123,23.581903,2853.5,2852.3,7.795]
[1765990356358,5.297438,2853.5,2852.6,5.4222]
[1765990356577,0.573,2853.6,2852.6,5.4222]
[1765990356759,3.067848,2853.5,2852.6,5.4222]
[1765990357075,3.21861923,2853.5,2852.6,5.4222]
[1765990357275,0.46438023,2853.3,2852.6,5.4222]
[1765990357424,0.37916192,2853.4,2852.3,6.4516784]
[1765990357623,0.46438023,2853.5,2852.6,5.4222]
[1765990357848,0.46438023,2853.5,2852.3,0.575]
[1765990358198,0.46438023,2853.5,2852.8,5.4222]
[1765990358333,0.0002,2854.0,2853.2,5.4222]
[1765990358677,0.0002,2854.0,2853.3,2.3728]
[1765990359558,0.0002,2854.0,2853.1,5.9952]
[1765990359559,10.265951,2853.9,2853.1,5.9952]
[1765990359768,10.265951,2853.9,2852.9,2.3728]
[1765990359769,7.951312,2853.7,2852.9,0.573]
[1765990359942,9.383312,2853.7,2852.3,0.002]
[1765990360271,0.46438023,2853.1,2852.3,0.002]
[1765990360468,0.573,2853.1,2852.3,0.002]
[1765990360671,14.990332,2852.7,2851.9,0.002]
[1765990360878,1.949,2852.5,2851.2,8.4937]
[1765990361039,0.46438023,2852.3,2851.2,8.4937]
[1765990361239,0.46438023,2852.1,2851.2,8.4937]
[1765990361464,0.46438023,2852.1,2851.2,7.9207]
[1765990361665,0.855,2852.2,2850.8,0.573]
[1765990361868,1.03738023,2852.1,2851.1,7.9227]
[1765990362068,1.094,2852.5,2851.1,7.9227]
[1765990362069,0.68471368,2853.1,2851.6,2.2923]
[1765990362271,0.68471368,2853.1,2851.5,0.86988423]
[1765990362272,0.68471368,2853.1,2852.3,2.2923]
[1765990362458,0.68471368,2853.1,2852.2,0.573]
[1765990362774,0.573,2853.5,2852.2,0.573]
[1765990362775,0.0002,2854.0,2852.9,2.460468]
[1765990362982,0.0002,2854.0,2853.0,7.9207]
[1765990363476,20.787578,2853.9,2851.6,3.50680023]
[1765990363681,20.787578,2853.9,2852.9,9.13352822]
[1765990363682,0.46438023,2853.8,2852.9,9.13352822]
[1765990363973,1.13435942,2853.8,2853.0,11.42578104]
[1765990364140,0.0002,2854.0,2853.0,7.9207]
[1765990364342,0.0002,2854.0,2853.2,5.6284]
[1765990364741,0.0002,2854.0,2853.2,7.9207]
[1765990365150,0.0002,2854.0,2853.0,3.50507533]
[1765990365473,0.0002,2854.0,2852.9,4.07811891]
[1765990365474,0.0002,2854.0,2853.1,8.67901942]
[1765990365643,0.0002,2854.0,2853.1,0.573]
[1765990365970,0.0002,2854.0,2853.5,2.2923]
[1765990366170,0.0002,2854.0,2853.5,7.9207]
[1765990366572,0.0002,2854.0,2853.4,0.573]
[1765990367073,0.0002,2854.0,2853.6,2.2923]
[1765990367913,0.0002,2854.0,2853.4,0.573]
[1765990368065,0.0004,2854.3,2853.4,8.4937]
[1765990368272,0.0004,2854.3,2853.5,2.2923]
[1765990369381,0.0004,2854.3,2853.5,7.9207]
[1765990371106,0.0004,2854.3,2853.5,8.4937]
[1765990371618,0.0004,2854.3,2853.7,2.2923]
[1765990373372,0.0004,2854.3,2853.1,3.50488862]
[1765990373373,0.0004,2854.3,2851.6,1.74379557]
[1765990373573,0.0004,2854.3,2853.2,3.50483334]
[1765990373806,0.0004,2854.3,2853.3,4.07771275]
[1765990374010,0.0004,2854.3,2853.3,7.9207]
[1765990374309,0.0004,2854.3,2853.4,2.8653]
[1765990375278,17.590397,2854.2,2852.7,0.46438023]
[1765990375502,2.3320797,2854.1,2852.9,8.38508023]
[1765990375702,0.573,2854.1,2853.0,2.2923]
[1765990375903,4.2392,2853.9,2852.9,0.46438023]
[1765990376133,5.0942,2853.4,2852.0,7.9207]
[1765990376334,0.573,2853.3,2852.5,7.9227]
[1765990376632,0.573,2853.4,2852.6,7.9207]
[1765990376832,0.573,2853.4,2852.7,2.2923]
[1765990377336,0.573,2853.4,2852.5,0.002]
[1765990377542,17.610627,2853.2,2852.5,0.002]
[1765990377749,11.684678,2853.0,2852.5,0.002]
[1765990378211,11.684678,2853.0,2852.1,7.9207]
[1765990378419,10.340101,2853.0,2852.1,7.9207]
[1765990378617,2.31692072,2853.1,2852.1,7.9207]
[1765990378936,9.621855,2853.2,2852.1,7.9207]
[1765990379308,2.082773,2853.2,2852.1,7.9207]
[1765990379843,0.573,2853.4,2852.4,2.2923]
[1765990380147,0.573,2853.4,2852.4,8.4937]
[1765990380444,0.46438023,2853.9,2853.0,2.2923]
[1765990380745,11.196634,2854.0,2853.1,0.573]
[1765990380914,0.46438023,2853.9,2853.2,2.2923]
[1765990381239,0.0004,2854.3,2853.7,2.2923]
[1765990381441,0.0004,2854.3,2854.2,2.2923]
[1765990381605,0.0004,2854.7,2854.2,2.2923]
[1765990381914,4.8122,2855.6,2853.9,7.00793566]
[1765990381915,2.037596,2855.7,2854.5,2.2923]
[1765990382113,0.573,2856.0,2855.0,5.6284]
[1765990382359,1.71216963,2857.1,2855.0,5.6284]
[1765990382360,6.99961502,2857.3,2855.1,0.60802504]
[1765990382639,18.295798,2856.6,2855.4,7.9207]
[1765990382808,18.295798,2856.6,2853.9,27.02541159]
[1765990382809,4.70558023,2856.3,2855.0,6.2014]
[1765990383037,0.573,2856.5,2855.2,7.9207]
[1765990383269,13.358157,2856.2,2855.2,7.9207]
[1765990383478,0.46438023,2856.3,2855.2,7.9207]
[1765990383479,1.38225372,2856.1,2855.2,7.9207]
[1765990383651,11.43647,2855.8,2854.7,7.9207]
[1765990383971,0.46438023,2855.9,2853.6,3.50434051]
[1765990383972,4.2412,2855.3,2853.6,3.50434051]
[1765990384195,11.726422,2855.2,2853.9,7.9207]
[1765990384465,0.46438023,2855.5,2854.0,2.2923]
[1765990384668,0.31353452,2855.4,2854.3,7.9207]
[1765990384874,19.40315767,2855.6,2854.3,7.9207]
[1765990385090,4.8142,2855.7,2854.3,7.9207]
[1765990385091,16.023057,2855.5,2854.3,7.9207]
[1765990385234,4.2412,2855.0,2853.8,2.2923]
[1765990385442,9.419707,2854.8,2853.6,0.002]
[1765990385670,4.02118,2854.7,2853.7,2.2923]
[1765990385875,0.46438023,2855.5,2854.0,5.6284]
[1765990386175,0.02563661,2856.2,2854.0,5.6284]
[1765990386176,0.573,2855.7,2854.9,2.2923]
[1765990386469,0.573,2856.1,2854.9,2.2923]
[1765990386635,2.191046,2856.0,2855.0,7.9207]
[1765990386840,2.191046,2856.0,2855.0,8.4937]
[1765990387084,2.036995,2855.8,2854.8,2.2923]
[1765990387366,0.2764046,2855.9,2855.1,2.2923]
[1765990387536,0.46438023,2855.9,2855.1,7.9207]
[1765990387741,0.46438023,2856.0,2854.7,7.9207]
[1765990387993,10.441309,2855.9,2854.8,0.573]
[1765990388353,0.46438023,2855.8,2854.8,0.573]
[1765990388556,0.46438023,2855.8,2854.7,0.573]
[1765990388865,1.85551742,2855.7,2854.7,8.4937]
[1765990389071,0.46438023,2856.0,2854.8,5.7285]
[1765990389271,0.46438023,2855.6,2854.9,2.2732]
[1765990389441,2.360184,2855.9,2854.7,2.2732]
[1765990389642,15.545028,2855.7,2854.7,6.3015]
[1765990389873,15.545028,2855.7,2854.8,8.0017]
[1765990390169,1.60094082,2855.6,2854.1,5.7285]
[1765990390372,0.46438023,2855.8,2854.6,2.2732]
[1765990390576,0.46438023,2855.7,2854.8,2.1498]
[1765990391166,7.00284727,2856.0,2854.8,2.1498]
[1765990391167,0.46438023,2855.9,2854.8,2.1498]
[1765990391368,0.573,2856.1,2855.2,2.1498]
[1765990391669,0.573,2856.1,2855.4,7.9904]
[1765990392370,0.5722,2856.1,2855.4,7.9904]
[1765990392568,2.12396,2856.0,2855.4,7.9904]
[1765990392792,8.03705923,2855.9,2854.2,0.405504]
[1765990392944,7.565863,2855.8,2854.8,0.002]
[1765990393149,0.31715402,2856.0,2855.1,7.9904]
[1765990393369,0.31715402,2856.0,2855.4,5.8406]
[1765990393370,0.001,2856.0,2855.4,5.8406]
[1765990393581,0.001,2856.0,2855.4,7.9804]
[1765990393757,0.001,2856.2,2855.5,2.1498]
[1765990395197,0.001,2856.2,2855.5,2.7218]
[1765990395571,0.001,2856.2,2855.5,8.5624]
[1765990395985,0.001,2856.2,2855.6,7.9904]
[1765990396172,0.001,2856.2,2855.8,7.9904]
[1765990396377,0.001,2856.2,2855.9,2.1498]
[1765990396678,0.001,2856.2,2855.8,7.9904]
[1765990396880,0.001,2856.2,2855.8,2.1498]
[1765990397081,0.001,2856.2,2855.7,6.4126]
[1765990397466,0.001,2856.2,2855.7,0.572]
[1765990397865,0.001,2856.2,2855.6,11.49222477]
[1765990398093,0.001,2856.2,2855.8,5.8406]
[1765990398306,0.8584,2856.9,2855.8,5.8406]
[1765990398307,0.001,2857.2,2856.1,5.8406]
[1765990398521,0.001,2857.2,2856.6,2.1498]
[1765990398666,0.001,2857.2,2856.2,0.572]
[1765990398667,0.001,2857.2,2856.9,7.9904]
[1765990399092,0.001,2857.2,2856.9,5.8406]
[1765990399291,0.001,2857.4,2855.8,0.64126]
[1765990399499,2.1616,2859.3,2857.1,5.8406]
[1765990399700,8.61981,2858.4,2857.5,5.8406]
[1765990399900,4.2542,2858.7,2857.5,0.572]
[1765990399901,7.973621,2858.3,2857.5,0.572]
[1765990400087,7.973621,2858.3,2857.1,5.8406]
[1765990400088,2.1616,2858.1,2857.4,0.572]
[1765990400289,2.1616,2858.1,2857.1,5.8406]
[1765990400504,2.1616,2858.6,2857.3,5.8406]
[1765990400679,3.49739511,2859.3,2857.0,10.50050512]
[1765990400680,1.77568886,2859.9,2857.5,5.8406]
[1765990401009,2.1616,2859.6,2857.9,5.8406]
[1765990401299,4.8272,2859.8,2858.0,6.4126]
[1765990401300,2.62598023,2859.3,2858.0,6.4126]
[1765990401468,0.46438023,2859.0,2858.1,0.572]
[1765990401669,7.205437,2859.0,2858.1,0.562]
[1765990401869,7.205437,2859.0,2857.7,5.8406]
[1765990401870,12.652335,2859.0,2857.7,5.8406]
[1765990402180,2.1616,2858.7,2857.8,0.572]
[1765990403012,0.46438023,2858.5,2857.7,5.8406]
[1765990403198,0.57300352,2858.4,2857.8,0.572]
[1765990403505,0.46438023,2859.0,2857.9,5.8406]
[1765990403669,0.46438023,2858.8,2858.0,5.8406]
[1765990403869,3.75189222,2859.2,2858.1,5.8406]
[1765990404077,2.287092,2859.1,2858.2,5.8406]
[1765990404388,0.83956945,2859.1,2858.2,6.4126]
[1765990404710,0.37518922,2859.1,2858.7,5.8406]
[1765990404886,13.436789,2859.6,2858.7,5.8306]
[1765990405081,2.1616,2859.4,2858.2,0.572]
[1765990405395,2.7336,2859.7,2858.3,2.1498]
[1765990405569,3.16038,2859.6,2858.4,3.49846067]
[1765990405774,0.373238,2859.6,2858.6,2.1498]
[1765990406076,2.64059923,2859.9,2858.6,2.1498]
[1765990406368,2.1616,2860.1,2858.7,0.405504]
[1765990406574,4.037214,2860.3,2858.8,2.1498]
[1765990406806,4.037214,2860.3,2859.0,5.8406]
[1765990407009,7.32349,2860.1,2859.2,5.8406]
[1765990407218,2.6225214,2860.2,2859.2,5.8406]
[1765990407369,3.2172,2860.1,2859.2,5.8406]
[1765990407695,0.46438023,2860.0,2859.2,5.8406]
[1765990408033,0.35512819,2860.0,2859.2,6.4126]
[1765990408299,0.35512819,2860.0,2859.3,5.8406]
[1765990408466,0.46438023,2860.3,2859.3,5.8406]
[1765990408672,0.46438023,2860.1,2859.3,5.8406]
[1765990408870,0.46438023,2860.3,2859.4,2.1498]
[1765990409104,2.1616,2860.5,2859.5,5.8406]
[1765990409283,3.78614,2860.8,2859.9,5.8406]
[1765990409471,3.738956,2860.6,2859.9,5.8406]
[1765990409674,3.738956,2860.6,2859.8,0.572]
[1765990409879,3.46618,2860.4,2859.1,5.8406]
[1765990410219,2.1616,2860.3,2859.3,0.572]
[1765990410420,0.26259802,2860.2,2859.3,0.572]
[1765990410575,0.26259802,2860.2,2859.1,5.8406]
[1765990410908,3.46638,2860.1,2859.2,6.4126]
[1765990411108,10.600502,2860.1,2859.2,6.4126]
[1765990411299,2.1616,2860.2,2859.2,6.4126]
[1765990411682,0.46438023,2860.0,2859.2,6.4126]
[1765990411875,0.46438023,2860.0,2859.3,0.571]
[1765990412188,0.84796462,2859.9,2859.3,0.571]
[1765990412392,0.46438023,2860.4,2859.3,6.4116]
[1765990412700,2.62598023,2860.4,2859.3,6.4116]
[1765990413280,0.46438023,2860.0,2859.0,2.1498]
[1765990413493,0.92165628,2860.7,2859.4,5.8406]
[1765990413494,2.62598023,2860.6,2859.4,5.8406]
[1765990413814,0.35476365,2860.5,2859.7,5.8406]
[1765990414013,0.46438023,2860.4,2858.9,3.49782379]
[1765990414314,0.46438023,2860.2,2859.2,5.8406]
[1765990414610,2.62598023,2860.4,2859.4,5.8406]
[1765990414810,2.1616,2860.4,2859.4,6.4116]
[1765990415108,2.1616,2860.4,2859.0,3.49764471]
[1765990415109,4.56527439,2860.3,2859.0,9.33832507]
[1765990415409,0.29807439,2860.3,2859.3,5.64715748]
[1765990415710,2.1626,2860.4,2859.5,3.49709339]
[1765990415910,0.001,2860.4,2859.6,6.44656992]
[1765990416111,0.001,2860.4,2859.7,7.9904]
[1765990416313,0.0002,2860.4,2859.7,7.9904]
[1765990416496,0.0002,2860.4,2859.7,9.11125896]
[1765990416834,0.0002,2860.4,2859.7,5.8406]
[1765990416981,2.1618,2860.4,2859.8,0.60596748]
[1765990417311,0.0002,2860.4,2859.8,0.571]
[1765990417608,0.0002,2860.4,2860.2,5.8406]
[1765990417811,0.0002,2860.4,2860.3,4.06713676]
[1765990418023,0.0002,2860.4,2860.3,6.21693676]
[1765990418235,0.0002,2860.4,2860.3,0.9713191]
[1765990418392,0.0002,2860.4,2860.3,0.571]
[1765990418593,0.0002,2860.4,2860.0,5.8406]
[1765990418792,0.0002,2860.4,2860.1,0.571]
[1765990418995,0.0002,2860.4,2859.7,5.8406]
[1765990419342,0.0002,2860.4,2859.9,3.49661206]
[1765990419535,0.0002,2860.4,2860.0,5.8406]
[1765990419743,0.0002,2860.4,2860.2,5.8406]
[1765990420021,0.0002,2860.4,2860.3,6.4116]
[1765990420627,0.0002,2860.4,2860.3,0.571]
[1765990420838,0.0002,2860.4,2860.1,0.571]
[1765990421032,0.22801,2860.4,2859.8,0.571]
[1765990421233,0.22801,2860.4,2859.5,5.8684]
[1765990421440,4.2672,2860.0,2858.9,5.8684]
[1765990421650,6.99276248,2860.1,2858.1,5.8684]
[1765990421850,0.46438023,2860.0,2858.7,2.3201]
[1765990422147,0.22801,2860.4,2859.6,2.3201]
[1765990422333,0.22801,2860.4,2859.6,8.1885]
[1765990422334,0.0002,2860.4,2859.6,8.1885]
[1765990422847,0.0002,2860.4,2859.1,5.8684]
[1765990422848,4.2674,2860.4,2859.1,5.8684]
[1765990423050,2.2779,2860.3,2859.1,6.4394]
[1765990423247,2.2779,2860.2,2859.1,5.8684]
[1765990423454,1.03538023,2860.1,2859.1,5.8684]
[1765990423751,2.2779,2860.0,2858.8,3.49795198]
[1765990423952,2.2779,2860.0,2858.8,0.571]
[1765990423953,0.74927023,2859.9,2858.8,0.571]
[1765990424154,0.28489,2859.9,2858.8,0.571]
[1765990424370,0.571,2860.1,2859.3,5.8684]
[1765990424558,2.2781,2860.4,2859.4,8.1885]
[1765990424849,2.74228023,2860.0,2858.9,8.1885]
[1765990425051,2.74228023,2860.0,2858.1,12.5253384]
[1765990425052,0.46438023,2859.8,2859.0,8.1885]
[1765990425251,2.74228023,2859.7,2858.8,3.90343316]
[1765990425430,2.2779,2859.7,2859.0,3.49764651]
[1765990425631,2.2779,2859.7,2858.7,0.405504]
[1765990425632,0.46099062,2859.8,2858.7,0.405504]
[1765990425832,2.2779,2859.8,2858.8,8.1885]
[1765990426033,2.74228023,2859.7,2858.7,3.49809353]
[1765990426234,4.2672,2859.7,2858.7,0.571]
[1765990426544,2.2779,2859.7,2858.6,9.36652245]
[1765990426749,2.74228023,2859.7,2858.6,9.36652245]
[1765990426945,2.74228023,2859.5,2857.4,3.49964296]
[1765990427135,0.571,2859.4,2858.5,2.3201]
[1765990427454,0.571,2859.4,2858.6,9.3666159]
[1765990427625,0.571,2859.4,2858.8,5.8684]
[1765990427824,0.571,2859.4,2858.8,12.86422099]
[1765990428036,0.571,2859.4,2858.8,9.36624982]
[1765990428477,0.571,2859.4,2858.8,3.49784982]
[1765990428676,0.571,2860.0,2859.1,5.8684]
[1765990428980,0.571,2860.0,2859.3,5.8684]
[1765990429345,2.2779,2860.3,2859.5,5.8684]
[1765990429570,0.0002,2860.4,2859.5,8.1885]
[1765990429772,2.50591,2860.4,2859.5,9.36546691]
[1765990429974,2.50591,2860.4,2859.5,5.8684]
[1765990430180,2.74228023,2860.3,2859.5,4.06808754]
[1765990430852,2.74228023,2860.3,2859.5,0.571]
[1765990431048,2.2779,2860.0,2859.0,3.49763195]
[1765990431249,2.74228023,2859.6,2858.8,3.49791045]
[1765990431462,2.74228023,2859.8,2858.9,5.8684]
[1765990431660,0.571,2860.2,2858.7,0.571]
[1765990431661,2.8489,2860.2,2859.3,5.8684]
[1765990431898,0.46438023,2860.1,2859.4,4.06816042]
[1765990432073,2.8489,2860.2,2859.4,4.06816042]
[1765990432074,4.8382,2860.5,2859.4,7.5653976]
[1765990432241,2.2779,2860.7,2859.6,2.3201]
[1765990432444,0.0002,2860.4,2859.8,8.1885]
[1765990433250,0.0002,2860.4,2859.5,6.273904]
[1765990433450,0.0002,2860.4,2859.6,0.571]
[1765990433842,0.0002,2860.4,2859.7,3.4968703]
[1765990434474,0.0002,2860.4,2859.7,6.9937406]
[1765990434676,0.0002,2860.4,2859.6,4.06793009]
[1765990434844,0.0002,2860.4,2859.9,5.8684]
[1765990435045,0.0002,2860.4,2860.3,5.8684]
[1765990435687,0.0002,2860.4,2860.3,2.3201]
[1765990435886,0.0002,2860.4,2860.3,6.38723676]
[1765990436184,2.2779,2862.0,2860.4,6.273904]
[1765990436479,2.2779,2862.0,2860.6,6.273904]
[1765990436480,4.243949,2862.0,2860.6,6.273904]
[1765990436661,2.2779,2861.9,2860.8,5.8684]
[1765990436861,2.2779,2861.9,2860.9,0.571]
[1765990437185,2.2779,2861.9,2861.0,5.8684]
[1765990437347,0.571,2862.3,2861.0,5.8684]
[1765990437348,0.571,2862.3,2861.1,5.8684]
[1765990437549,2.2779,2862.2,2861.1,5.8684]
[1765990437846,3.49248803,2863.3,2861.7,6.98885276]
[1765990438093,3.49248803,2863.3,2860.9,0.571]
[1765990438094,15.798499,2862.4,2859.9,0.51895896]
[1765990438378,2.2779,2862.1,2860.9,3.4953502]
[1765990438580,2.2779,2862.1,2861.0,6.4394]
[1765990438769,0.571,2862.3,2861.3,5.8684]
[1765990438972,2.2779,2861.8,2859.8,2.3201]
[1765990439283,2.2779,2861.8,2858.8,0.002]
[1765990439284,2.2779,2861.2,2860.0,3.4965033]
[1765990439489,2.2779,2861.2,2860.2,2.3201]
[1765990439803,2.2779,2861.2,2860.3,5.8684]
[1765990440083,2.74228023,2861.8,2860.4,8.1885]
[1765990440297,0.57,2861.7,2860.5,5.8684]
[1765990440453,2.2779,2862.2,2860.9,2.3201]
[1765990440660,2.2779,2862.2,2861.1,2.3201]
[1765990440859,2.2779,2862.2,2861.2,5.8684]
[1765990441152,2.2779,2861.9,2860.5,2.3201]
[1765990441370,2.2779,2861.9,2859.9,0.46438023]
[1765990441371,2.2779,2861.6,2859.9,8.1885]
[1765990441589,0.57,2861.8,2860.1,5.8684]
[1765990441590,2.2779,2861.3,2860.1,5.8684]
[1765990441753,2.2779,2861.3,2859.6,0.46438023]
[1765990441969,0.57,2861.3,2860.1,2.3201]
[1765990442174,2.2779,2861.5,2860.4,5.8684]
[1765990442373,2.74228023,2862.0,2860.7,8.1885]
[1765990442570,2.2779,2861.6,2860.3,2.3201]
[1765990442770,2.74228023,2861.6,2860.4,0.57]
[1765990442968,1.03438023,2861.6,2860.4,5.8684]
[1765990443221,2.2779,2861.3,2860.5,0.57]
[1765990443389,1.79404983,2861.1,2859.5,3.4970426]
[1765990443578,11.053582,2860.7,2859.4,0.002]
[1765990443775,2.1931735,2860.4,2859.4,0.002]
[1765990444108,2.2779,2860.3,2859.4,0.002]
[1765990444306,0.02463661,2862.6,2859.4,0.002]
[1765990444618,0.02463661,2862.6,2860.1,5.8684]
[1765990444619,2.2779,2861.6,2860.1,5.8684]
[1765990444919,0.27422802,2861.5,2860.4,0.02463661]
[1765990445075,0.57,2861.8,2860.6,0.46438023]
[1765990445279,2.2779,2862.1,2860.8,5.8684]
[1765990446177,2.9644,2862.0,2860.8,5.8684]
[1765990446378,2.2779,2861.9,2860.9,0.57]
[1765990446778,2.2779,2861.9,2861.0,5.8684]
[1765990447016,2.50569,2861.9,2861.0,5.8684]
[1765990447180,2.2789,2862.4,2861.1,5.8684]
[1765990447387,2.2789,2862.4,2861.2,5.8684]
[1765990447707,2.74228023,2862.0,2860.6,6.33278023]
[1765990447881,2.74228023,2862.0,2860.7,4.06556788]
[1765990448077,2.2779,2861.8,2860.6,5.8684]
[1765990448319,2.55212802,2861.7,2860.7,0.57]
[1765990448783,2.55212802,2861.7,2860.7,4.06562156]
[1765990449106,2.2779,2861.7,2860.7,8.93352156]
[1765990449309,2.2779,2861.7,2860.8,0.57]
[1765990449508,2.2779,2861.7,2860.8,6.0079]
[1765990450080,0.001,2861.9,2860.9,3.49540354]
[1765990450277,2.1569,2861.9,2860.9,5.4379]
[1765990450479,2.32159,2861.8,2861.0,0.57]
[1765990450809,2.1529,2861.5,2860.5,3.49583014]
[1765990450983,2.1529,2861.5,2860.7,0.57]
[1765990451380,2.1529,2861.3,2860.3,5.7349]
[1765990451580,2.1529,2861.3,2860.4,0.57]
[1765990451807,0.001,2861.9,2860.9,2.3736]
[1765990451808,2.1539,2861.9,2860.9,2.3736]
[1765990452004,2.1539,2861.9,2861.2,5.7349]
[1765990452005,0.001,2861.9,2861.2,5.7349]
[1765990452206,0.001,2861.9,2861.4,5.7349]
[1765990452413,2.1539,2861.9,2860.6,2.3736]
[1765990452615,2.61828023,2861.9,2860.7,0.57]
[1765990452809,0.26182802,2861.8,2861.0,3.49522977]
[1765990452981,0.26182802,2861.8,2861.1,4.06515741]
[1765990453177,2.1539,2861.9,2861.1,0.57]
[1765990453381,2.1539,2861.9,2861.2,0.57]
[1765990453595,2.1539,2861.9,2861.1,0.57]
[1765990453986,2.1539,2861.9,2861.2,3.49503704]
[1765990454318,2.1529,2861.8,2860.6,3.49566819]
[1765990454489,0.001,2861.9,2859.1,0.02463661]
[1765990454490,2.1529,2861.4,2859.1,0.02463661]
[1765990454680,2.1529,2861.4,2859.6,2.3736]
[1765990454681,1.79404983,2861.1,2859.6,2.3736]
[1765990454882,2.1529,2860.8,2859.6,3.49694859]
[1765990455118,0.46438023,2861.1,2859.9,2.3736]
[1765990455279,0.46438023,2861.1,2859.8,5.75953661]
[1765990455280,0.001,2861.9,2860.7,5.7349]
[1765990455482,0.001,2861.9,2860.6,0.02463661]
[1765990455483,0.001,2861.9,2861.2,5.7349]
[1765990455883,2.1529,2861.8,2860.6,5.7349]
[1765990456214,2.1529,2861.8,2860.8,3.49552572]
[1765990456512,2.1529,2861.5,2860.9,0.57]
[1765990456810,2.41462802,2861.4,2860.3,3.49609716]
[1765990457015,2.41462802,2861.4,2860.4,0.57]
[1765990457177,2.41462802,2861.4,2860.2,5.7349]
[1765990457383,2.41462802,2861.4,2860.5,3.49581256]